bitfinex/quotes_ETHUSD_20240711
["timestamp","ask_amount","ask_price","bid_price","bid_amount"]
[1720678621127,2.4847,3108.6,3107.7,0.24813]
[1720678621326,2.4847,3108.6,3107.4,2.009]
[1720678621327,0.55,3108.5,3107.4,2.009]
[1720678621994,2.4847,3108.6,3107.4,2.009]
[1720678622213,2.4847,3108.6,3107.8,2.009]
[1720678623009,2.4847,3108.6,3107.4,5.009]
[1720678623205,2.4847,3108.6,3107.5,0.73208]
[1720678629772,2.4847,3108.6,3107.8,2.009]
[1720678633075,2.4847,3108.6,3107.5,0.73208]
[1720678633298,2.8854,3108.5,3107.4,2.009]
[1720678633489,2.3354,3108.5,3107.5,2.3107]
[1720678633859,2.3354,3108.5,3107.8,2.009]
[1720678634181,2.3354,3108.5,3107.9,0.2009]
[1720678634681,0.33713808,3108.4,3107.9,0.2009]
[1720678634852,0.33713808,3108.4,3108.2,2.009]
[1720678638182,0.33713808,3108.4,3107.9,0.2009]
[1720678638992,2.70063808,3108.4,3107.9,0.2009]
[1720678639199,2.70063808,3108.4,3107.9,3.0]
[1720678639496,2.70063808,3108.4,3107.8,2.009]
[1720678644287,2.70063808,3108.4,3107.5,3.0]
[1720678647293,2.70063808,3108.4,3107.4,2.009]
[1720678653367,2.70063808,3108.4,3107.4,2.07334886]
[1720678653879,2.70063808,3108.4,3107.5,0.20733489]
[1720678658301,2.70063808,3108.4,3107.6,0.06434892]
[1720678658677,2.70063808,3108.4,3107.5,3.20733489]
[1720678659394,2.70063808,3108.4,3107.5,3.27167909]
[1720678660091,2.70063808,3108.4,3107.5,3.20733489]
[1720678660296,2.70063808,3108.4,3107.6,0.76510349]
[1720678664100,2.70063808,3108.4,3107.6,0.82944781]
[1720678664298,2.70063808,3108.4,3107.8,2.009]
[1720678664518,2.2682,3109.0,3107.9,0.06433966]
[1720678664731,0.33710157,3108.8,3108.7,0.837]
[1720678666094,0.33710157,3108.8,3108.0,3.0]
[1720678666095,0.33710157,3108.8,3108.5,0.837]
[1720678666335,2.2664,3108.7,3108.5,0.837]
[1720678666633,2.2664,3108.7,3107.9,3.0]
[1720678666935,2.2664,3108.7,3108.0,1.2409]
[1720678667178,2.2664,3108.7,3107.9,3.0]
[1720678667344,2.2664,3108.7,3107.8,2.009]
[1720678668841,2.2664,3108.7,3107.9,0.06433972]
[1720678670399,0.33710157,3108.8,3108.0,2.2531]
[1720678670600,0.33710157,3108.8,3108.1,0.06433439]
[1720678670839,0.33710157,3108.8,3108.2,2.24074344]
[1720678672322,2.2528,3108.7,3108.2,2.24074344]
[1720678678663,0.33710157,3108.8,3108.3,0.06433977]
[1720678678863,0.33710157,3108.8,3108.2,2.24074344]
[1720678680940,0.33710157,3108.8,3108.3,0.06432943]
[1720678681124,0.33710157,3108.8,3108.4,0.23050729]
[1720678682931,0.33710157,3108.8,3108.2,2.009]
[1720678685466,0.33710157,3108.8,3108.3,2.49833644]
[1720678685669,2.414,3109.6,3108.6,2.009]
[1720678685875,0.33704695,3109.5,3108.6,2.07332418]
[1720678686164,0.33704695,3109.5,3109.0,2.009]
[1720678686329,0.33704695,3109.5,3109.1,0.06431963]
[1720678688943,0.33704695,3109.5,3109.0,2.009]
[1720678690450,0.33704695,3109.5,3109.0,2.07331498]
[1720678690781,0.33704695,3109.5,3109.4,0.836]
[1720678692045,2.4552,3109.9,3109.4,0.836]
[1720678692359,0.33699715,3110.0,3109.8,0.836]
[1720678692536,0.33699715,3110.0,3109.6,2.006]
[1720678692737,0.33699715,3110.0,3109.7,0.27133735]
[1720678692967,0.33699715,3110.0,3109.8,0.0643069]
[1720678694541,0.33699715,3110.0,3109.7,0.20703104]
[1720678694940,0.33699715,3110.0,3109.7,0.27133545]
[1720678695163,0.33699715,3110.0,3109.8,0.06430454]
[1720678695495,0.02830304,3109.9,3109.8,0.2920381]
[1720678695771,0.02830304,3109.9,3109.8,2.6223381]
[1720678695982,0.33694614,3110.6,3109.8,5.6223381]
[1720678696136,0.33694614,3110.6,3110.0,2.006]
[1720678696473,0.33694614,3110.6,3110.1,0.06429409]
[1720678696664,0.33694614,3110.6,3110.2,0.20702941]
[1720678696840,0.33694614,3110.6,3110.3,0.06429411]
[1720678698191,0.33694614,3110.6,3110.2,0.20702941]
[1720678699238,2.69954614,3110.6,3110.2,0.20702941]
[1720678700041,2.69954614,3110.6,3109.1,2.4814]
[1720678700354,2.69954614,3110.6,3109.5,5.006]
[1720678700684,2.69954614,3110.6,3109.6,3.0]
[1720678701070,2.69954614,3110.6,3109.5,2.006]
[1720678702067,2.3626,3110.4,3109.1,2.006]
[1720678702273,0.29126,3110.3,3109.1,2.006]
[1720678704604,2.3626,3110.4,3109.5,2.006]
[1720678704832,0.33694614,3110.6,3109.5,5.0703032]
[1720678705005,0.33694614,3110.6,3109.9,2.006]
[1720678705991,0.33694614,3110.6,3109.5,5.006]
[1720678707922,0.33694614,3110.6,3109.5,2.006]
[1720678708215,0.33694614,3110.6,3109.6,0.2006]
[1720678709199,0.33694614,3110.6,3109.7,0.06430343]
[1720678709501,0.33694614,3110.6,3109.6,0.2006]
[1720678711587,2.3263,3110.5,3109.6,0.2006]
[1720678712212,2.3263,3110.5,3109.5,2.006]
[1720678712782,2.3263,3110.5,3109.1,5.006]
[1720678713284,2.3263,3110.5,3109.1,2.006]
[1720678715091,2.3666,3110.3,3109.1,2.006]
[1720678715890,2.4441,3110.1,3109.1,2.006]
[1720678716091,3.27220879,3110.0,3109.1,2.006]
[1720678716313,2.4441,3109.9,3109.1,2.006]
[1720678716918,2.4441,3109.9,3108.7,2.006]
[1720678725041,2.4441,3109.9,3108.1,2.33]
[1720678725383,2.4311,3109.7,3108.0,2.006]
[1720678725547,0.55,3109.6,3108.1,0.2006]
[1720678725715,2.3012,3109.5,3108.1,0.2006]
[1720678727474,2.3012,3109.5,3108.4,2.006]
[1720678727678,2.3012,3109.5,3108.5,0.2006]
[1720678729744,2.3012,3109.5,3108.4,2.006]
[1720678730346,2.3012,3109.5,3108.7,0.2]
[1720678731078,0.33705258,3109.4,3108.7,0.2]
[1720678733380,2.4086,3109.3,3108.7,0.2]
[1720678734190,2.4086,3109.3,3108.8,2.006]
[1720678734366,0.33705258,3109.4,3108.9,0.2206]
[1720678736585,0.33705258,3109.4,3108.7,0.2]
[1720678743896,0.33705258,3109.4,3108.8,2.006]
[1720678744057,0.33705258,3109.4,3108.8,2.07032321]
[1720678744858,0.33705258,3109.4,3108.8,2.006]
[1720678749579,0.33705258,3109.4,3108.8,2.07032332]
[1720678749779,0.33705258,3109.4,3108.9,0.22703233]
[1720678750181,2.4614,3109.6,3108.9,0.29135561]
[1720678751074,2.4614,3109.6,3108.9,0.22703233]
[1720678752802,2.4614,3109.6,3108.9,0.29135094]
[1720678753593,2.82041068,3109.9,3108.9,2.78405094]
[1720678753793,2.82041068,3109.9,3109.0,3.47900509]
[1720678754703,2.82041068,3109.9,3109.0,0.47900509]
[1720678756334,2.82041068,3109.9,3108.9,0.22703233]
[1720678756634,2.82041068,3109.9,3108.7,0.2]
[1720678756833,2.77041068,3109.9,3108.7,0.2]
[1720678760808,2.3051,3109.7,3108.7,0.2]
[1720678761209,2.3051,3109.5,3108.7,0.2]
[1720678761517,0.55,3109.4,3108.7,0.2]
[1720678761737,2.4217,3109.3,3108.7,0.2]
[1720678761906,2.4217,3109.1,3108.7,0.2]
[1720678765723,0.55,3109.0,3108.7,0.2]
[1720678767963,2.3835,3108.9,3108.7,0.2]
[1720678768377,0.55,3108.8,3108.7,0.2]
[1720678770956,2.3835,3108.9,3108.7,0.2]
[1720678771349,2.65555864,3108.9,3108.7,0.2]
[1720678776146,2.3835,3108.9,3108.7,0.2]
[1720678778486,0.55,3108.8,3108.7,0.2]
[1720678778880,2.2884,3108.8,3108.7,0.2]
[1720678779125,2.8384,3108.8,3108.7,0.2]
[1720678779725,5.8384,3108.8,3108.7,0.2]
[1720678779897,6.76184,3108.8,3108.7,0.2]
[1720678782038,10.76184,3108.8,3108.7,0.2]
[1720678784047,6.76184,3108.8,3108.7,0.2]
[1720678789472,6.21184,3108.8,3108.7,0.2]
[1720678790767,6.76184,3108.8,3108.7,0.2]
[1720678792754,7.59884,3108.8,3108.7,0.2]
[1720678793597,10.99484,3108.8,3108.7,0.2]
[1720678795879,14.99484,3108.8,3108.7,0.2]
[1720678796077,3.396,3108.6,3107.3,3.3118]
[1720678796316,0.837,3108.1,3107.3,2.4748]
[1720678796478,0.55,3108.0,3107.3,2.4748]
[1720678796916,0.88717849,3108.0,3107.3,2.4748]
[1720678797118,3.29727849,3108.0,3107.3,2.4748]
[1720678797281,3.29727849,3108.0,3107.1,0.837]
[1720678797282,0.41342785,3107.9,3107.1,0.837]
[1720678797480,0.55,3107.8,3107.1,0.837]
[1720678798725,0.55,3107.8,3107.0,2.3244]
[1720678799323,5.7705,3107.7,3106.5,2.3478]
[1720678799483,1.18205,3107.6,3106.5,2.3478]
[1720678799681,1.18205,3107.6,3105.9,2.01]
[1720678799682,3.41342785,3107.9,3106.3,2.01]
[1720678799889,3.41342785,3107.9,3106.4,2.3478]
[1720678799890,0.41342785,3107.9,3106.4,2.3478]
[1720678800094,0.55,3107.8,3106.4,2.41216945]
[1720678800430,0.55,3107.8,3106.4,2.3478]
[1720678800582,0.55,3107.8,3106.5,2.3478]
[1720678800794,0.98006063,3107.8,3106.6,0.23478]
[1720678801097,3.45706063,3107.8,3106.6,0.23478]
[1720678802901,6.396,3107.7,3106.5,2.3478]
[1720678803091,0.55,3107.6,3106.5,2.3478]
[1720678803798,2.308,3107.5,3106.5,2.3478]
[1720678804097,0.55,3107.4,3106.5,2.3478]
[1720678804311,0.2858,3107.3,3106.5,2.3478]
[1720678804498,0.55,3107.2,3106.5,2.3478]
[1720678805222,3.0,3107.7,3106.5,2.3478]
[1720678805423,0.55,3107.6,3106.5,2.3478]
[1720678805734,3.55,3107.7,3106.5,2.3478]
[1720678806043,2.3889,3108.2,3106.8,2.3156]
[1720678806321,3.0,3108.1,3107.0,2.3156]
[1720678806538,2.3889,3108.2,3107.0,2.3156]
[1720678806713,0.23889,3108.1,3107.0,2.3156]
[1720678807234,3.23889,3108.1,3107.0,2.3156]
[1720678807396,0.55,3108.0,3107.0,2.3156]
[1720678808338,0.4386982,3108.3,3107.0,2.3156]
[1720678808520,2.4969,3108.5,3107.0,2.3156]
[1720678808835,2.4969,3108.5,3107.1,2.72076]
[1720678810033,0.55,3108.4,3107.1,2.72076]
[1720678810257,3.88716025,3108.4,3107.1,2.72076]
[1720678811633,0.88716025,3108.4,3107.1,2.72076]
[1720678811836,0.88716025,3108.4,3107.5,2.01]
[1720678811837,0.33716025,3108.4,3107.5,2.01]
[1720678812052,0.33716025,3108.4,3107.7,2.3942]
[1720678812195,4.0,3108.8,3107.8,0.0643464]
[1720678812397,4.0,3108.8,3107.7,2.3942]
[1720678812717,0.33714777,3108.5,3107.7,2.3942]
[1720678813901,0.33714777,3108.5,3107.8,0.32177102]
[1720678819760,0.60366255,3108.5,3107.8,0.32177102]
[1720678821324,0.55,3108.4,3107.8,0.32177102]
[1720678827277,0.55,3108.4,3107.9,2.4358]
[1720678827689,0.60366255,3108.5,3107.9,2.4358]
[1720678828079,0.33714777,3108.5,3107.9,2.4358]
[1720678835212,0.33714777,3108.5,3107.9,2.50014252]
[1720678835500,7.44,3109.5,3108.1,2.4147]
[1720678835791,0.33710548,3109.0,3108.1,2.4147]
[1720678836003,2.3486,3109.9,3108.3,2.3913]
[1720678836201,2.3486,3109.9,3108.3,2.45563331]
[1720678836356,0.33709466,3109.0,3108.3,2.45563331]
[1720678836552,7.8786982,3110.1,3108.5,2.3213]
[1720678836758,0.33706883,3109.3,3108.5,2.3213]
[1720678836952,0.33706883,3109.3,3108.4,2.01]
[1720678836953,7.8786982,3110.1,3108.7,2.3213]
[1720678837259,0.33706255,3109.3,3108.7,2.3213]
[1720678837907,7.44,3110.1,3108.8,4.46302497]
[1720678838115,2.4007,3110.5,3108.9,2.3887]
[1720678838272,0.24007,3110.4,3109.1,2.3903]
[1720678838471,0.57710181,3110.4,3109.1,2.3903]
[1720678838671,1.01580001,3110.4,3109.1,2.3903]
[1720678839504,2.3758,3110.1,3108.7,2.2553]
[1720678839660,1.12718,3110.0,3108.7,2.2553]
[1720678839860,4.12718,3110.0,3108.7,2.2553]
[1720678840372,3.396,3109.9,3108.7,2.2553]
[1720678840584,0.55,3109.8,3108.7,2.2553]
[1720678841097,0.55,3109.9,3108.7,2.2553]
[1720678841257,0.412718,3109.8,3108.7,2.2553]
[1720678841459,0.55,3109.7,3108.7,2.2553]
[1720678845792,3.55,3109.7,3108.7,2.2553]
[1720678846364,0.55,3109.7,3108.7,2.2553]
[1720678848968,5.6696,3109.6,3108.7,2.2553]
[1720678849168,4.17196,3109.5,3108.7,2.2553]
[1720678850967,1.17196,3109.5,3108.7,2.2553]
[1720678852612,0.55,3109.5,3108.7,2.2553]
[1720678852789,0.55,3109.8,3108.7,2.2553]
[1720678853640,0.57718,3110.0,3108.7,2.2553]
[1720678853935,0.33706158,3109.8,3108.7,2.2553]
[1720678856396,0.55,3109.7,3108.7,2.2553]
[1720678863937,0.33706158,3109.8,3108.7,2.2553]
[1720678865208,6.396,3110.2,3108.7,2.2553]
[1720678865403,1.1896,3110.1,3108.9,2.4073]
[1720678869363,4.5856,3110.1,3108.9,2.4073]
[1720678869513,2.275,3109.9,3108.9,2.4073]
[1720678869714,0.55,3109.8,3108.9,2.4073]
[1720678870386,3.55,3109.8,3108.9,2.4073]
[1720678870550,0.5825,3109.7,3108.9,2.4073]
[1720678870853,0.55,3109.6,3108.9,2.4073]
[1720678874528,3.946,3109.6,3108.2,2.325]
[1720678874735,3.396,3109.4,3108.2,2.325]
[1720678874935,2.3524,3109.5,3108.2,2.325]
[1720678874936,6.946,3109.3,3108.2,2.325]
[1720678875141,4.0906,3109.2,3108.2,2.325]
[1720678875363,3.55,3109.1,3108.2,2.325]
[1720678877890,2.4781,3109.0,3108.2,2.325]
[1720678878028,0.55,3108.9,3107.9,2.3292]
[1720678878224,3.55,3108.9,3107.9,2.3292]
[1720678878428,0.60281,3108.8,3107.9,2.3292]
[1720678879570,3.55,3108.9,3107.9,2.3292]
[1720678881629,3.01211487,3109.7,3107.9,2.3292]
[1720678881630,2.4652,3109.4,3107.9,2.3292]
[1720678881835,3.0477,3109.7,3108.0,2.39934736]
[1720678882075,3.0,3109.6,3108.0,2.39934736]
[1720678882243,2.62676674,3109.7,3108.0,2.39934736]
[1720678882432,3.0,3109.6,3108.0,2.39934736]
[1720678883147,2.4652,3109.7,3108.0,2.39934736]
[1720678883355,0.88612,3109.6,3108.2,2.4451]
[1720678883677,3.88612,3109.6,3108.2,2.4451]
[1720678884482,0.33709382,3109.9,3108.4,2.2642]
[1720678885740,0.55,3109.8,3108.4,2.2642]
[1720678886179,3.55,3109.8,3108.4,2.2642]
[1720678886481,0.55,3109.8,3108.4,2.2642]
[1720678887196,0.33709382,3109.9,3108.4,2.2642]
[1720678887484,2.4586,3111.0,3109.1,2.4714]
[1720678887696,2.4586,3111.0,3109.5,2.01]
[1720678887839,2.4586,3111.0,3109.6,2.4714]
[1720678888285,5.8546,3111.3,3109.6,2.4714]
[1720678889035,3.0,3111.2,3109.6,2.4714]
[1720678889493,0.55,3111.1,3109.6,2.4714]
[1720678889854,0.55,3111.1,3109.6,2.53570487]
[1720678890092,0.55,3111.1,3109.7,0.45457049]
[1720678890429,0.55,3111.1,3109.8,2.4714]
[1720678894302,0.55,3111.1,3109.8,2.53570367]
[1720678894601,0.55,3111.1,3109.8,2.53570321]
[1720678895669,0.55,3111.1,3109.8,2.4714]
[1720678896696,0.55,3111.1,3109.9,0.06430098]
[1720678896856,0.55,3111.1,3110.0,0.2535701]
[1720678897502,0.55,3111.1,3110.1,2.4088]
[1720678901888,0.55,3111.1,3109.4,2.3226]
[1720678901889,2.4842,3110.7,3109.4,2.3226]
[1720678902095,0.55,3110.6,3109.4,2.3226]
[1720678902387,0.30342,3110.5,3109.4,2.3226]
[1720678902617,0.55,3110.4,3109.4,2.3226]
[1720678903519,0.30342,3110.5,3109.4,2.3226]
[1720678903816,3.5233,3110.9,3109.4,2.3226]
[1720678904121,3.557315,3110.8,3109.4,2.3226]
[1720678906383,6.953315,3110.8,3109.4,2.3226]
[1720678907599,2.4125,3110.7,3109.4,2.3226]
[1720678907810,0.55,3110.6,3109.4,2.3226]
[1720678908014,0.29625,3110.5,3109.4,2.3226]
[1720678908215,0.55,3110.4,3109.4,2.3226]
[1720678911446,3.946,3110.4,3109.4,2.3226]
[1720678911594,6.396,3110.3,3108.9,7.4]
[1720678911794,6.396,3110.3,3108.7,2.01]
[1720678911795,2.9844,3110.2,3108.7,2.3312]
[1720678912032,7.33404,3110.1,3108.7,2.3312]
[1720678912332,3.946,3110.0,3108.7,2.3312]
[1720678912545,3.0,3109.9,3108.7,2.3312]
[1720678912701,0.55,3109.8,3108.7,2.3312]
[1720678913920,0.55,3110.0,3108.7,2.3312]
[1720678914121,0.448804,3109.9,3108.7,4.57432]
[1720678914357,0.55,3110.0,3108.8,2.48362431]
[1720678914951,0.55,3110.0,3108.8,2.4193]
[1720678916427,0.55,3110.0,3108.8,2.4836232]
[1720678916824,3.93804,3110.1,3108.8,2.4836232]
[1720678919325,3.93804,3110.1,3108.8,2.4193]
[1720678919529,0.637244,3110.0,3108.8,2.885542]
[1720678920361,0.637244,3110.0,3108.8,2.94986167]
[1720678920787,0.637244,3110.0,3108.8,2.885542]
[1720678922387,3.0,3110.1,3108.9,0.06431965]
[1720678922785,3.0,3110.1,3108.8,2.885542]
[1720678922786,2.4344,3110.2,3108.8,2.4193]
[1720678922951,0.55,3110.1,3108.8,2.4193]
[1720678923168,3.55,3110.1,3108.8,2.48362392]
[1720678923391,3.88703977,3110.1,3108.8,2.48362392]
[1720678923579,0.63214398,3110.0,3108.8,2.95629831]
[1720678923769,0.55,3109.9,3108.8,2.95629831]
[1720678923977,0.63214398,3110.0,3108.8,2.95629831]
[1720678924209,0.63214398,3110.0,3108.8,2.89197439]
[1720678926185,0.63214398,3110.0,3108.8,2.95629546]
[1720678926392,0.63214398,3110.0,3108.9,0.51994155]
[1720678928577,3.33703977,3110.1,3109.0,2.4869]
[1720678929383,3.33703977,3110.1,3108.3,7.4]
[1720678929384,2.2843,3109.9,3108.3,7.4]
[1720678929594,2.2843,3109.9,3108.1,2.4869]
[1720678929595,3.396,3109.6,3108.1,2.4869]
[1720678929797,5.406,3109.3,3108.1,2.4869]
[1720678930117,5.406,3109.3,3107.7,2.4869]
[1720678930118,2.2843,3109.1,3107.7,2.4869]
[1720678930317,0.55,3109.0,3107.7,2.4869]
[1720678931111,0.55,3109.0,3107.8,3.32177102]
[1720678933511,0.55,3109.0,3108.9,0.32177102]
[1720678933920,6.246,3109.0,3108.9,0.32177102]
[1720678934124,6.246,3109.0,3107.6,7.063]
[1720678934125,10.64427487,3109.0,3107.6,7.063]
[1720678934428,10.64427487,3109.0,3107.2,2.4915]
[1720678934429,5.01,3108.9,3107.2,2.4915]
[1720678934731,4.0,3108.8,3107.2,2.4915]
[1720678934924,4.0,3108.8,3107.3,0.24915]
[1720678934925,4.451,3108.7,3107.3,0.24915]
[1720678935127,2.488,3108.6,3107.3,3.24915]
[1720678935331,0.55,3108.5,3107.3,3.24915]
[1720678935532,2.488,3108.6,3107.3,3.24915]
[1720678935697,3.0,3108.7,3107.4,2.3679]
[1720678936026,3.0,3108.7,3107.5,0.762705]
[1720678936532,2.4144,3109.6,3107.7,2.01]
[1720678936696,2.4144,3109.6,3107.8,2.3425]
[1720678937331,2.4144,3109.6,3107.8,5.3425]
[1720678937531,2.4144,3109.6,3107.9,2.3425]
[1720678937696,2.4144,3109.6,3108.2,2.3425]
[1720678937896,2.4144,3109.6,3108.3,0.06433174]
[1720678938303,2.3658,3109.9,3108.2,5.40683257]
[1720678938541,0.33706211,3109.5,3108.2,5.40683257]
[1720678938908,0.33706211,3109.5,3108.2,5.3425]
[1720678939141,0.33706211,3109.5,3108.3,0.73525]
[1720678939510,2.3658,3109.4,3108.2,2.3425]
[1720678940012,5.3658,3109.4,3108.2,2.3425]
[1720678943214,0.55,3109.3,3107.9,2.3656]
[1720678946137,3.55,3109.3,3107.9,2.3656]
[1720678946450,0.59158,3109.2,3108.0,0.53656]
[1720678946652,2.3658,3109.4,3108.0,3.53656]
[1720678946859,5.3658,3109.4,3108.0,3.60090144]
[1720678948559,5.3658,3109.4,3108.1,2.3274]
[1720678949072,0.55,3109.3,3108.1,2.3274]
[1720678949242,3.55,3109.3,3108.1,2.3274]
[1720678949443,0.89158,3109.2,3108.1,2.3274]
[1720678949638,0.55,3109.1,3108.1,2.3274]
[1720678950225,2.2819,3109.0,3107.7,7.063]
[1720678950424,5.2819,3109.0,3107.7,7.063]
[1720678950759,0.58319,3108.9,3107.7,7.063]
[1720678950931,0.58319,3108.9,3107.6,2.3274]
[1720678951263,0.58319,3108.9,3107.6,5.3274]
[1720678952758,0.55,3108.8,3107.6,5.3274]
[1720678952969,2.4591,3108.7,3107.6,5.3274]
[1720678953173,0.30091,3108.6,3107.6,5.9364105]
[1720678953381,0.30091,3108.6,3107.6,2.9364105]
[1720678953582,0.30091,3108.6,3107.6,2.3274]
[1720678954080,0.33716678,3108.5,3107.6,2.3274]
[1720678961250,0.33716678,3108.5,3107.4,3.0]
[1720678961537,2.4654,3108.4,3107.4,3.0]
[1720678961852,2.4654,3108.4,3107.1,7.063]
[1720678962001,2.74565668,3108.3,3107.1,8.01773]
[1720678965246,0.73036705,3108.2,3107.1,8.01773]
[1720678965458,0.73036705,3108.1,3107.1,0.95473]
[1720678965607,0.73036705,3108.0,3107.0,3.0]
[1720678965947,2.74565668,3108.3,3106.9,2.4843]
[1720678966148,0.73037235,3108.2,3106.9,2.4843]
[1720678966341,0.73037235,3108.1,3106.9,2.4843]
[1720678966502,0.73037235,3108.0,3106.9,2.4843]
[1720678966706,2.74565668,3108.3,3107.0,0.24843]
[1720678966910,2.4511,3108.1,3107.0,3.24843]
[1720678967140,0.7303408,3108.0,3107.0,3.24843]
[1720678968443,2.4511,3108.1,3107.0,3.24843]
[1720678968616,0.73036444,3108.0,3107.0,3.24843]
[1720678968804,2.4511,3108.1,3107.1,0.573273]
[1720678969000,0.73035926,3108.0,3107.1,0.573273]
[1720678969204,0.73037101,3107.9,3107.1,0.573273]
[1720678969501,0.33721844,3108.0,3107.1,0.573273]
[1720678970140,0.73036566,3107.9,3107.1,0.573273]
[1720678970343,0.33721844,3108.0,3107.2,0.3821703]
[1720678970546,0.73036551,3107.9,3107.2,0.3821703]
[1720678970714,0.33721844,3108.0,3107.2,0.3821703]
[1720678970904,0.73035811,3107.9,3107.2,0.3821703]
[1720678971105,0.33721844,3108.0,3107.2,0.3821703]
[1720678971339,0.73035816,3107.9,3107.2,0.3821703]
[1720678971547,0.33721844,3108.0,3107.2,0.3821703]
[1720678971748,0.73035816,3107.9,3107.2,0.3821703]
[1720678971943,0.33721844,3108.0,3107.2,0.3821703]
[1720678972157,0.7303582,3107.9,3107.2,0.3821703]
[1720678972328,0.33721844,3108.0,3107.2,0.3821703]
[1720678972535,1.00918988,3107.9,3107.0,3.0]
[1720678972842,0.27883184,3107.9,3106.9,2.4843]
[1720678973265,0.73035909,3107.8,3106.9,2.4843]
[1720678973422,0.27883184,3107.9,3106.9,2.4843]
[1720678973623,0.73035919,3107.8,3106.9,2.73273]
[1720678973933,0.27883184,3107.9,3106.9,2.73273]
[1720678974138,0.73035918,3107.8,3106.9,2.73273]
[1720678974327,0.27883184,3107.9,3106.9,2.73273]
[1720678974537,0.73037493,3107.8,3106.9,2.73273]
[1720678974743,0.33721844,3108.0,3107.0,0.273273]
[1720678975279,0.33721844,3108.0,3107.1,0.06436219]
[1720678975420,0.33721844,3108.0,3107.0,0.273273]
[1720678975963,2.3047,3107.9,3106.7,0.06436219]
[1720678976266,2.4666,3107.3,3105.7,2.4426]
[1720678976559,3.0166,3107.2,3105.7,2.4426]
[1720678976852,3.0166,3107.2,3105.8,0.24426]
[1720678977224,2.4666,3107.2,3105.7,2.4426]
[1720678977428,5.4666,3107.2,3105.8,0.06437813]
[1720678978227,5.4666,3107.2,3105.8,3.06437813]
[1720678978467,2.4666,3107.2,3105.9,2.01]
[1720678978636,2.4666,3107.2,3106.0,0.57180833]
[1720678979579,2.4666,3107.2,3106.1,2.4384]
[1720678979736,2.4666,3107.2,3106.2,0.06437056]
[1720678980175,2.3622,3107.8,3106.3,2.07437056]
[1720678980391,2.3622,3107.8,3106.4,2.4384]
[1720678980542,2.3622,3107.8,3106.5,0.51563635]
[1720678980941,2.3622,3107.8,3106.5,3.51563635]
[1720678981259,0.33721844,3108.0,3106.8,2.01]
[1720678981466,0.33721844,3108.0,3106.8,2.07435293]
[1720678981778,0.33721844,3108.0,3106.9,2.4148]
[1720678981972,0.33721844,3108.0,3107.0,0.51326817]
[1720678982178,0.33721844,3108.0,3107.0,3.51326817]
[1720678987756,0.33721844,3108.0,3107.1,2.2948]
[1720678988060,2.3264,3109.0,3107.6,2.01]
[1720678988319,0.33715245,3108.4,3107.6,2.01]
[1720678988592,2.3264,3109.0,3107.8,2.3746]
[1720678988764,0.33713051,3108.6,3107.9,0.0643379]
[1720678988963,0.33713051,3108.6,3108.0,2.01]
[1720678989173,0.33713051,3108.6,3108.1,0.27176642]
[1720678991673,2.3669,3109.5,3108.1,0.27176642]
[1720678991905,0.33710427,3109.0,3108.1,0.27176642]
[1720678992065,2.3669,3109.5,3108.1,0.27176642]
[1720678992496,0.33710198,3109.0,3108.1,0.27176642]
[1720678992681,2.3669,3109.5,3108.2,0.22817664]
[1720678992883,0.33710312,3109.0,3108.3,0.06433195]
[1720678993116,2.3956,3108.9,3108.0,0.06433195]
[1720678993411,2.47897774,3108.8,3107.8,7.063]
[1720678993622,5.71853774,3108.8,3107.8,7.063]
[1720678993771,0.55,3108.7,3107.8,7.063]
[1720678993971,3.55,3108.7,3107.8,7.063]
[1720678994676,4.01897774,3108.7,3107.8,7.063]
[1720678994919,0.62685377,3108.6,3107.8,7.063]
[1720678996223,0.62685377,3108.6,3107.2,7.063]
[1720678996520,0.62685377,3108.6,3106.9,5.3958]
[1720678996711,0.62685377,3108.6,3107.0,3.44891529]
[1720679002423,2.3274,3108.5,3106.9,2.3958]
[1720679002756,2.3274,3108.4,3106.8,3.0]
[1720679003107,0.55,3108.3,3106.8,3.0]
[1720679003362,0.28774,3108.2,3106.8,3.0]
[1720679008371,0.28774,3108.2,3106.5,5.53385947]
[1720679008716,2.66014104,3108.1,3106.5,5.4695]
[1720679009659,2.66014104,3108.1,3106.5,3.0]
[1720679010254,2.66014104,3108.1,3106.4,2.07435969]
[1720679010423,2.4427,3107.9,3106.4,2.58180354]
[1720679010627,5.4427,3107.9,3106.5,3.0]
[1720679010882,0.55,3107.8,3106.5,3.0]
[1720679011073,0.55,3107.8,3106.4,0.50743597]
[1720679011074,0.59927,3107.7,3106.4,0.50743597]
[1720679012524,2.3601,3107.6,3106.4,0.50743597]
[1720679015337,2.3601,3107.6,3106.5,0.06436753]
[1720679015570,2.3601,3107.6,3106.4,0.50743597]
[1720679017947,2.3601,3107.6,3106.5,0.06436771]
[1720679018187,0.295937,3107.5,3106.5,0.06436771]
[1720679018545,0.295937,3107.5,3106.4,0.50743597]
[1720679018745,0.295937,3107.5,3106.2,3.0]
[1720679019061,2.3012,3107.6,3106.1,5.4784]
[1720679022395,2.3012,3107.6,3106.1,3.0]
[1720679023275,2.3012,3107.6,3105.9,3.06436771]
[1720679024802,2.3012,3107.6,3105.9,3.0]
[1720679026456,3.33725768,3107.7,3105.8,2.01]
[1720679026457,2.279,3107.4,3105.8,2.01]
[1720679026657,2.829,3107.3,3105.8,2.01]
[1720679027600,2.829,3107.3,3105.5,0.06437874]
[1720679027894,2.829,3107.3,3105.4,5.07437866]
[1720679030098,2.829,3107.3,3105.4,5.07437865]